bitfinex-derivatives/quotes_BTCF0:USTF0_20230701
["timestamp","ask_amount","ask_price","bid_price","bid_amount"]
[1688196049840,0.72763032,30441.0,30440.0,1.45739591]
[1688196050449,0.72763032,30441.0,30440.0,1.4756256]
[1688196051236,0.72763032,30441.0,30440.0,1.09659591]
[1688196052241,0.72763032,30441.0,30440.0,1.1148256]
[1688196052451,0.72763032,30441.0,30440.0,1.09659591]
[1688196052638,0.72763032,30441.0,30440.0,0.91352624]
[1688196052943,0.66188096,30441.0,30440.0,0.91352624]
[1688196053347,0.66188096,30441.0,30440.0,0.93237569]
[1688196054147,0.68159696,30441.0,30440.0,0.91352624]
[1688196054742,0.70044641,30441.0,30440.0,0.91352624]
[1688196055144,0.76620012,30441.0,30440.0,1.07774646]
[1688196056051,0.70044641,30441.0,30440.0,0.91352624]
[1688196060253,0.76619483,30441.0,30440.0,0.91352624]
[1688196060452,0.74647883,30441.0,30440.0,0.91352624]
[1688196062550,0.68073041,30441.0,30440.0,0.91352624]
[1688196063256,0.7792613,30441.0,30440.0,0.91352624]
[1688196063458,0.68073041,30441.0,30440.0,0.91352624]
[1688196064855,0.66188096,30441.0,30440.0,0.91352624]
[1688196065060,0.66188096,30441.0,30440.0,0.93175593]
[1688196065359,0.66188096,30441.0,30440.0,0.95060538]
[1688196065658,0.66188096,30441.0,30440.0,0.93237569]
[1688196067158,0.66188096,30441.0,30440.0,0.95060538]
[1688196067563,0.66188096,30441.0,30440.0,0.93237569]
[1688196069165,0.66188096,30441.0,30440.0,0.91352624]
[1688196070162,0.72762645,30441.0,30440.0,0.91352624]
[1688196070656,0.7464759,30441.0,30440.0,0.91352624]
[1688196073264,0.72762645,30441.0,30440.0,0.93175593]
[1688196073468,0.72762645,30441.0,30440.0,0.91352624]
[1688196073765,0.72762645,30441.0,30440.0,0.93237569]
[1688196075468,0.72762645,30441.0,30440.0,0.91352624]
[1688196077563,0.66188096,30441.0,30440.0,0.91352624]
[1688196078868,0.66188096,30441.0,30440.0,0.93175593]
[1688196079065,0.66188096,30441.0,30440.0,0.91352624]
[1688196079959,0.68073041,30441.0,30440.0,0.91352624]
[1688196080661,0.70044641,30441.0,30440.0,0.91352624]
[1688196082260,0.7989773,30441.0,30440.0,0.91352624]
[1688196083165,0.78012785,30441.0,30440.0,0.55272624]
[1688196083364,0.78012785,30441.0,30440.0,0.91352624]
[1688196083965,0.7989773,30441.0,30440.0,0.91352624]
[1688196085066,0.76619624,30441.0,30440.0,0.91352624]
[1688196085271,0.74734679,30441.0,30440.0,0.91352624]
[1688196085467,0.72763079,30441.0,30440.0,0.91352624]
[1688196085669,0.72763079,30441.0,30440.0,0.93175593]
[1688196086063,0.66188096,30441.0,30440.0,0.91352624]
[1688196086674,0.72763362,30441.0,30440.0,0.91352624]
[1688196086882,0.72763361,30441.0,30440.0,0.91352624]
[1688196087380,0.70044641,30441.0,30440.0,0.91352624]
[1688196087581,0.76619906,30441.0,30440.0,0.91352624]
[1688196087876,0.70044641,30441.0,30440.0,0.91352624]
[1688196088378,0.68073041,30441.0,30440.0,0.93175593]
[1688196088674,0.66188096,30441.0,30440.0,0.93237569]
[1688196088886,0.70044641,30441.0,30440.0,0.91352624]
[1688196092477,0.70044641,30441.0,30440.0,0.55272624]
[1688196092671,0.70044641,30441.0,30440.0,0.91352624]
[1688196098185,0.70044641,30441.0,30440.0,1.07774646]
[1688196100192,0.7989773,30441.0,30440.0,0.91352624]
[1688196106695,0.7989773,30441.0,30440.0,0.55272624]
[1688196106989,0.01884945,30440.0,30436.0,0.16455508]
[1688196107187,0.45204898,30440.0,30439.0,0.019717]
[1688196107495,0.01884945,30439.0,30436.0,0.50017308]
[1688196107685,0.11836661,30438.0,30437.0,0.05915]
[1688196107882,0.79234628,30438.0,30437.0,0.05915]
[1688196108087,0.81119573,30438.0,30437.0,0.05915]
[1688196109081,0.48265903,30438.0,30437.0,0.05915]
[1688196109284,1e-08,30442.0,30438.0,0.0066]
[1688196109492,0.19147084,30444.0,30438.0,0.0066]
[1688196109493,0.09238219,30443.0,30441.0,0.7132]
[1688196109694,0.09238219,30443.0,30442.0,0.18389606]
[1688196109891,0.0985723,30445.0,30442.0,0.18389606]
[1688196110100,0.3517,30446.0,30444.0,0.7135]
[1688196110294,0.3517,30446.0,30445.0,0.41759214]
[1688196110788,0.51859638,30446.0,30445.0,0.41759214]
[1688196111101,0.20018023,30446.0,30445.0,0.41759214]
[1688196111487,0.19014601,30446.0,30445.0,0.41759214]
[1688196111689,0.05255155,30451.0,30445.0,0.380513]
[1688196111889,0.05,30453.0,30449.0,0.3608]
[1688196112089,0.53184925,30450.0,30449.0,0.410076]
[1688196112289,0.3552,30450.0,30449.0,0.44715514]
[1688196112496,0.3552,30450.0,30449.0,0.42892545]
[1688196112497,0.85501401,30450.0,30449.0,0.42892545]
[1688196112890,0.85501401,30450.0,30449.0,0.44715514]
[1688196114500,0.85501401,30450.0,30449.0,0.42892545]
[1688196115203,0.85501401,30450.0,30449.0,0.44715514]
[1688196117590,0.85501401,30450.0,30449.0,0.410076]
[1688196118301,0.85501401,30450.0,30449.0,0.44715514]
[1688196123508,0.85501401,30450.0,30449.0,0.08635514]
[1688196123707,0.85501401,30450.0,30449.0,0.44715514]
[1688196138919,0.85501401,30450.0,30449.0,0.79985514]
[1688196143822,0.85501401,30450.0,30449.0,0.43905514]
[1688196144016,0.85501401,30450.0,30449.0,0.79985514]
[1688196144820,0.85501401,30450.0,30449.0,0.80225514]
[1688196148230,0.49981401,30450.0,30449.0,0.80235514]
[1688196148418,0.3193,30452.0,30449.0,0.80235514]
[1688196148619,0.00599698,30450.0,30449.0,0.410076]
[1688196148826,0.3193,30452.0,30449.0,0.765176]
[1688196149028,0.3193,30452.0,30451.0,0.3552]
[1688196149224,0.3193,30452.0,30451.0,0.374909]
[1688196149423,0.83165791,30452.0,30451.0,0.374909]
[1688196149623,0.83165791,30452.0,30451.0,0.39313869]
[1688196150428,0.83165791,30452.0,30451.0,0.69373869]
[1688196152227,0.81280846,30452.0,30451.0,0.69373869]
[1688196152538,0.83165791,30452.0,30451.0,0.69373869]
[1688196152832,0.83165791,30452.0,30451.0,0.675509]
[1688196153725,0.83165791,30452.0,30451.0,1.036309]
[1688196153929,0.96276187,30452.0,30451.0,1.05453869]
[1688196154332,0.96276187,30452.0,30451.0,1.036309]
[1688196154531,0.94391242,30452.0,30451.0,1.05453869]
[1688196154924,1.29911242,30452.0,30451.0,0.69933869]
[1688196155634,1.29911242,30452.0,30451.0,0.33853869]
[1688196155930,1.29911242,30452.0,30451.0,0.76497914]
[1688196156130,1.3051375,30452.0,30451.0,0.76497914]
[1688196157032,1.32398695,30452.0,30451.0,0.74674945]
[1688196157736,1.32398695,30452.0,30451.0,0.76497914]
[1688196159138,1.32398695,30452.0,30451.0,0.40417914]
[1688196159325,1.32398695,30452.0,30451.0,0.69933869]
[1688196159530,1.32398695,30452.0,30451.0,0.33853869]
[1688196159833,1.32398695,30452.0,30451.0,0.76497914]
[1688196163543,1.19288299,30452.0,30451.0,0.76497914]
[1688196163744,1.17403354,30452.0,30451.0,0.76497914]
[1688196163955,1.17403354,30452.0,30451.0,0.78382859]
[1688196164451,0.00602508,30452.0,30451.0,1.07338814]
[1688196165043,0.02487453,30452.0,30451.0,1.05453869]
[1688196166450,0.00602508,30452.0,30451.0,1.05453869]
[1688196166639,0.00602508,30452.0,30451.0,1.07338814]
[1688196166940,0.00602508,30452.0,30451.0,1.17180665]
[1688196169141,0.00602508,30452.0,30451.0,1.1529572]
[1688196169341,0.10452956,30452.0,30451.0,1.1529572]
[1688196170045,0.10452956,30452.0,30451.0,1.17180665]
[1688196171750,0.00602508,30452.0,30451.0,1.17180665]
[1688196171953,0.00602508,30452.0,30451.0,1.07338814]
[1688196172155,0.00982862,30452.0,30451.0,1.07338814]
[1688196173243,0.00982862,30452.0,30451.0,1.07998814]
[1688196173445,0.00982862,30452.0,30451.0,1.42842014]
[1688196174246,0.00982862,30452.0,30451.0,1.07998814]
[1688196175351,0.00982862,30452.0,30451.0,1.21098673]
[1688196175742,0.00982862,30452.0,30451.0,1.07998814]
[1688196177343,0.00982862,30452.0,30451.0,1.07338814]
[1688196179955,0.00982862,30452.0,30451.0,1.20438673]
[1688196180152,0.00982862,30452.0,30451.0,1.42181959]
[1688196180359,0.00982862,30452.0,30451.0,1.20438673]
[1688196181759,0.00858338,30452.0,30451.0,1.20438673]
[1688196182257,0.00858338,30452.0,30451.0,1.23038921]
[1688196183657,0.00858338,30452.0,30451.0,1.09939062]
[1688196185359,0.38263283,30452.0,30451.0,1.036309]
[1688196185562,0.38263283,30452.0,30451.0,1.13461453]
[1688196186252,0.38263283,30452.0,30451.0,0.47881453]
[1688196186469,0.38263283,30452.0,30451.0,0.44605641]
[1688196186953,0.38263283,30452.0,30451.0,0.08525641]
[1688196187149,0.38263283,30452.0,30451.0,0.019709]
[1688196187556,0.40234183,30452.0,30451.0,0.019709]
[1688196190258,0.50084631,30452.0,30451.0,0.019709]
[1688196190459,0.48113731,30452.0,30451.0,0.019709]
[1688196190860,0.38263283,30452.0,30451.0,0.019709]
[1688196192358,0.38263283,30452.0,30451.0,0.08525641]
[1688196192359,0.48113731,30452.0,30451.0,0.08525641]
[1688196192659,0.48113731,30452.0,30451.0,0.019709]
[1688196193259,0.48113731,30452.0,30451.0,0.08525641]
[1688196195565,0.38263283,30452.0,30451.0,0.08525641]
[1688196202874,0.50084531,30452.0,30451.0,0.08525641]
[1688196203467,0.50084531,30452.0,30451.0,0.019709]
[1688196203667,0.40234083,30452.0,30451.0,0.019709]
[1688196208678,0.50082102,30452.0,30451.0,0.019709]
[1688196210174,0.40234083,30452.0,30451.0,0.019709]
[1688196217287,0.53344479,30452.0,30451.0,0.019709]
[1688196217677,0.53344479,30452.0,30450.0,0.049274]
[1688196217874,0.49222441,30451.0,30450.0,0.049274]
[1688196218084,0.50092877,30451.0,30450.0,0.049274]
[1688196218587,0.83212877,30451.0,30450.0,0.049274]
[1688196218783,0.83212877,30451.0,30450.0,0.01971]
[1688196218985,0.73366281,30451.0,30450.0,0.01971]
[1688196220272,0.83212453,30451.0,30450.0,0.01971]
[1688196224581,0.73366281,30451.0,30450.0,0.01971]
[1688196225186,0.83214043,30451.0,30450.0,0.01971]
[1688196226274,0.73366281,30451.0,30450.0,0.01971]
[1688196226682,1.09446281,30451.0,30450.0,0.01971]
[1688196228091,1.09446281,30451.0,30450.0,0.32921]
[1688196228784,1.07475381,30451.0,30450.0,0.32921]
[1688196229489,1.10144856,30451.0,30450.0,0.32921]
[1688196229685,1.23255252,30451.0,30450.0,0.32921]
[1688196230081,0.87735252,30451.0,30450.0,0.32921]
[1688196231194,0.51655252,30451.0,30450.0,0.32921]
[1688196231505,0.87735252,30451.0,30450.0,0.39475741]
[1688196233283,0.51655252,30451.0,30450.0,0.39475741]
[1688196233483,0.87735252,30451.0,30450.0,0.39475741]
[1688196234594,1.23255252,30451.0,30450.0,0.39475741]
[1688196235691,1.25226152,30451.0,30450.0,0.39475741]
[1688196239996,0.89146152,30451.0,30450.0,0.39475741]
[1688196240191,1.25226152,30451.0,30450.0,0.39475741]
[1688196242604,1.23255252,30451.0,30450.0,0.39475741]
[1688196244099,1.25226152,30451.0,30450.0,0.39475741]
[1688196247490,1.12115756,30451.0,30450.0,0.39475741]
[1688196248797,1.10144856,30451.0,30450.0,0.39475741]
[1688196250302,1.23289475,30451.0,30450.0,0.32921]
[1688196251806,0.87209475,30451.0,30450.0,0.32921]
[1688196252210,1.23289475,30451.0,30450.0,0.32921]
[1688196254105,0.87209475,30451.0,30450.0,0.32921]
[1688196254314,1.23289475,30451.0,30450.0,0.32921]
[1688196254898,1.10144856,30451.0,30450.0,0.32921]
[1688196257111,1.12115756,30451.0,30450.0,0.32921]
[1688196257705,1.25262256,30451.0,30450.0,0.42751553]
[1688196257905,1.12115756,30451.0,30450.0,0.32921]
[1688196258815,1.12115756,30451.0,30450.0,0.39490812]
[1688196259406,1.12115756,30451.0,30450.0,0.32921]
[1688196262109,1.28506398,30451.0,30450.0,0.08542392]
[1688196262310,0.01884945,30450.0,30449.0,0.06083865]
[1688196262613,0.74997396,30450.0,30449.0,0.02623107]
[1688196262813,0.74997396,30450.0,30448.0,0.00049259]
[1688196263013,0.53522675,30449.0,30448.0,0.00049259]
[1688196263209,0.5360883,30449.0,30447.0,0.11801753]
[1688196263405,0.716,30448.0,30447.0,0.11801753]
[1688196263606,0.88601024,30448.0,30447.0,0.11801753]
[1688196263805,0.52998664,30448.0,30447.0,0.11801753]
[1688196264017,0.05439551,30447.0,30445.0,0.18028259]
[1688196264223,0.30143529,30446.0,30445.0,0.18028259]
[1688196264413,0.32592478,30446.0,30445.0,0.049284]
[1688196265014,0.34477423,30446.0,30445.0,0.049284]
[1688196265317,0.34477423,30446.0,30445.0,0.18028259]
[1688196265514,0.34477423,30446.0,30445.0,0.049284]
[1688196268520,0.4056931,30446.0,30445.0,0.049284]
[1688196268719,0.82374753,30446.0,30444.0,0.019714]
[1688196268915,1.08894945,30445.0,30443.0,0.05963364]
[1688196269219,0.7104,30444.0,30443.0,0.05963364]
[1688196269519,0.74896345,30444.0,30443.0,0.06764111]
[1688196269725,1.1307285,30444.0,30443.0,0.06764111]
[1688196270313,0.80225655,30444.0,30443.0,0.06764111]
[1688196270924,0.4737846,30444.0,30443.0,0.06764111]
[1688196271223,0.14531265,30444.0,30443.0,0.06764111]
[1688196271423,0.16502665,30444.0,30443.0,0.06764111]
[1688196272824,0.16502665,30444.0,30439.0,0.22990506]
[1688196272825,3.23512665,30444.0,30439.0,0.065724]
[1688196273017,0.716,30440.0,30439.0,0.379424]
[1688196273215,0.79011251,30440.0,30439.0,0.065724]
[1688196273913,0.374917,30440.0,30439.0,0.065724]
[1688196274114,0.374917,30440.0,30439.0,0.07505336]
[1688196274319,0.04640189,30440.0,30439.0,0.07505336]
[1688196274525,0.35750189,30440.0,30439.0,0.07505336]
[1688196277626,0.33778489,30440.0,30439.0,0.07505336]
[1688196277826,0.02668489,30440.0,30439.0,0.07505336]
[1688196278025,0.02668489,30440.0,30439.0,0.1121325]
[1688196281729,0.05915,30443.0,30440.0,0.05]
[1688196281913,0.05915,30443.0,30442.0,0.3608]
[1688196282118,0.41115,30443.0,30442.0,0.380515]
[1688196282322,0.41115,30443.0,30442.0,0.38984442]
[1688196284627,0.41115,30443.0,30442.0,0.40869387]
[1688196285133,0.41115,30443.0,30442.0,0.38984442]
[1688196285431,0.41115,30443.0,30442.0,0.40869387]
[1688196286428,0.41115,30443.0,30442.0,0.38984442]
[1688196289330,0.41115,30443.0,30442.0,0.40869387]
[1688196292729,0.41115,30443.0,30442.0,0.04789387]
[1688196293923,0.41115,30443.0,30442.0,0.02904442]
[1688196300735,0.41115,30443.0,30442.0,0.00932942]
[1688196301236,0.41115,30443.0,30442.0,0.019715]
[1688196301437,0.41115,30443.0,30442.0,0.02904551]
[1688196314055,0.41115,30443.0,30442.0,0.06612465]
[1688196314252,0.41115,30443.0,30442.0,0.04789496]
[1688196314640,0.41115,30443.0,30442.0,0.02904551]
[1688196319644,0.54259979,30443.0,30442.0,0.02904551]
[1688196320948,0.77195,30443.0,30442.0,0.00924887]
[1688196321446,0.77195,30443.0,30441.0,0.3086]
[1688196321653,0.84744414,30442.0,30441.0,0.3086]
[1688196321950,0.86715914,30442.0,30441.0,0.019716]
[1688196322957,1.22235914,30442.0,30439.0,0.19045801]
[1688196323158,0.374917,30440.0,30439.0,0.19045801]
[1688196323347,0.374917,30440.0,30439.0,0.40799241]
[1688196323748,0.374917,30440.0,30439.0,0.19045801]
[1688196323950,0.374917,30440.0,30439.0,0.059148]
[1688196324155,0.47349445,30440.0,30439.0,0.059148]
[1688196326358,0.374917,30440.0,30439.0,0.059148]
[1688196328353,0.47349445,30440.0,30439.0,0.1577213]
[1688196328561,0.47349445,30440.0,30439.0,0.16474103]
[1688196328860,0.47349445,30440.0,30438.0,0.019718]
[1688196328861,0.730117,30440.0,30438.0,0.019718]
[1688196329067,0.80573674,30439.0,30436.0,0.19077277]
[1688196329248,0.11825474,30439.0,30438.0,0.019718]
[1688196329449,0.82805474,30439.0,30437.0,0.00376368]
[1688196329649,1.0141,30438.0,30436.0,0.19077277]
[1688196329852,0.726618,30437.0,30436.0,0.19077277]
[1688196330051,0.726618,30437.0,30436.0,0.40832485]
[1688196332057,0.726618,30437.0,30435.0,0.019719]
[1688196332058,0.374918,30437.0,30434.0,0.50458391]
[1688196332260,0.3552,30435.0,30434.0,0.50458391]
[1688196332850,0.374919,30435.0,30434.0,0.34040285]
[1688196336465,0.374919,30435.0,30434.0,0.34327649]
[1688196336865,0.686119,30435.0,30434.0,0.34327649]
[1688196337566,0.686119,30435.0,30434.0,0.42283264]
[1688196340374,0.6664,30435.0,30434.0,0.42283264]
[1688196342677,0.686119,30435.0,30434.0,0.42283264]
[1688196346369,0.71218408,30435.0,30434.0,0.42283264]
[1688196346759,1.42528408,30435.0,30432.0,0.368462]
[1688196346964,0.7072,30433.0,30432.0,0.059162]
[1688196347168,0.7072,30433.0,30432.0,0.27672671]
[1688196348675,0.3552,30433.0,30432.0,0.27672671]
[1688196356983,0.3552,30433.0,30432.0,0.29557616]
[1688196357673,0.3552,30433.0,30432.0,0.27672671]
[1688196359177,0.3552,30433.0,30432.0,0.29557616]
[1688196365577,0.3552,30433.0,30432.0,0.31380585]
[1688196365778,0.3552,30433.0,30432.0,0.47798691]
[1688196365979,0.3552,30433.0,30432.0,0.45975722]
[1688196368778,0.3552,30433.0,30432.0,0.47798691]
[1688196369182,0.3552,30433.0,30432.0,0.45975722]
[1688196369683,0.3552,30433.0,30432.0,0.47798691]
[1688196370583,0.3552,30433.0,30432.0,0.45975722]
[1688196371171,0.3552,30433.0,30432.0,0.47798691]
[1688196371577,0.3552,30433.0,30432.0,0.45975722]
[1688196371979,0.3552,30433.0,30432.0,0.44090777]
[1688196372781,0.3552,30433.0,30432.0,0.47798691]
[1688196372983,0.3552,30433.0,30432.0,0.45975722]
[1688196376886,0.3552,30433.0,30432.0,0.47798691]
[1688196377883,0.3552,30433.0,30432.0,0.31380585]
[1688196378281,0.3552,30433.0,30432.0,0.29557616]
[1688196378484,0.3552,30433.0,30432.0,0.31380585]
[1688196378879,0.3552,30433.0,30432.0,0.29557616]
[1688196379289,0.3552,30433.0,30432.0,0.31380585]
[1688196379589,0.3552,30433.0,30432.0,0.29557616]
[1688196379994,0.3552,30433.0,30432.0,0.31380585]
[1688196380582,0.3552,30433.0,30432.0,0.29557616]
[1688196383727,0.3552,30433.0,30432.0,0.66650585]
[1688196386799,0.3552,30433.0,30432.0,0.64827616]
[1688196388609,0.3552,30433.0,30432.0,0.66650585]
[1688196390912,0.35875099,30433.0,30432.0,1.02730585]
[1688196394813,0.35685099,30433.0,30432.0,1.02980585]
[1688196395418,0.35685099,30433.0,30432.0,0.66900585]
[1688196395715,0.35685099,30433.0,30432.0,1.02980585]
[1688196400419,0.27463304,30433.0,30432.0,1.02980585]
[1688196400620,0.27743875,30433.0,30432.0,1.02980585]
[1688196402920,0.27463304,30433.0,30432.0,1.02980585]
[1688196403721,0.27463304,30433.0,30432.0,0.66900585]
[1688196403907,0.27463304,30433.0,30432.0,1.02980585]
[1688196404917,0.3552,30433.0,30432.0,0.67460585]
[1688196407815,0.3552,30433.0,30432.0,1.02730585]
[1688196408323,0.36031977,30433.0,30432.0,1.02730585]
[1688196408622,0.36031977,30433.0,30432.0,0.66650585]
[1688196408918,0.36031977,30433.0,30432.0,1.02730585]
[1688196410119,0.35844666,30433.0,30432.0,1.02730585]
[1688196414823,0.35654666,30433.0,30432.0,1.02730585]
[1688196418023,0.35654666,30433.0,30432.0,0.66650585]
[1688196418218,0.35654666,30433.0,30432.0,1.02730585]
[1688196424827,0.00324666,30433.0,30432.0,1.02730585]
[1688196429021,0.00324666,30433.0,30432.0,0.66650585]
[1688196429229,0.00324666,30433.0,30432.0,1.02730585]
[1688196430427,0.00324666,30433.0,30432.0,0.66650585]
[1688196430620,0.00324666,30433.0,30432.0,1.02730585]
[1688196431825,0.3552,30434.0,30433.0,0.0020058]
[1688196432021,0.3552,30434.0,30433.0,0.59449151]
[1688196432629,0.3552,30434.0,30433.0,0.63157065]
[1688196433027,0.3552,30434.0,30433.0,0.99237065]
[1688196437328,0.38911039,30437.0,30435.0,0.019719]
[1688196437531,0.03391039,30437.0,30436.0,1.11770723]
[1688196438034,0.03391039,30437.0,30436.0,1.15478637]
[1688196441037,0.33841039,30437.0,30436.0,1.15478637]
[1688196441829,0.3045,30437.0,30436.0,1.15478637]
[1688196461146,0.38095259,30438.0,30436.0,1.15478637]
[1688196461346,0.09853674,30440.0,30436.0,1.15478637]
[1688196461347,0.3093,30440.0,30437.0,0.82716288]
[1688196461543,0.3093,30440.0,30439.0,0.84731856]
[1688196461745,0.3093,30440.0,30439.0,1.08460027]
[1688196462050,0.3093,30440.0,30439.0,1.12167941]
[1688196464149,0.3093,30440.0,30439.0,0.9041147]
[1688196464552,0.3093,30440.0,30439.0,1.12163889]
[1688196464753,0.3093,30440.0,30439.0,1.12163892]
[1688196466151,0.3093,30440.0,30439.0,0.9041147]
[1688196467947,0.3093,30440.0,30439.0,1.12163879]
[1688196468154,0.3093,30440.0,30439.0,0.9041147]
[1688196469955,0.3093,30440.0,30439.0,0.77269614]
[1688196473958,0.3093,30440.0,30439.0,0.41189614]
[1688196474158,0.3093,30440.0,30439.0,0.77269614]
[1688196474949,0.6645,30440.0,30439.0,0.77269614]
[1688196475265,0.6645,30440.0,30439.0,0.9041147]
[1688196475557,0.6645,30440.0,30439.0,0.77269614]
[1688196475969,0.6645,30440.0,30439.0,0.9041147]
[1688196476258,0.6645,30440.0,30439.0,1.12163442]
[1688196476661,0.6645,30440.0,30439.0,0.9041147]
[1688196477860,0.6645,30440.0,30439.0,1.12163508]
[1688196479359,0.6645,30440.0,30439.0,0.9041147]
[1688196479951,0.6645,30440.0,30439.0,1.12163544]
[1688196483561,0.6645,30440.0,30439.0,0.76083544]
[1688196483762,0.6645,30440.0,30439.0,1.12163544]
[1688196489155,0.6645,30440.0,30439.0,0.76083544]
[1688196489356,0.6645,30440.0,30439.0,1.12163544]
[1688196491564,0.6645,30440.0,30439.0,0.76083544]
[1688196491756,0.6645,30440.0,30439.0,1.12163544]
[1688196495863,0.6645,30440.0,30439.0,0.99021688]
[1688196498172,0.6645,30440.0,30439.0,1.1216131]
[1688196498967,0.6645,30440.0,30439.0,0.7608131]
[1688196499177,0.6645,30440.0,30439.0,1.1216131]
[1688196500974,0.3093,30440.0,30439.0,1.1216131]
[1688196501873,0.3093,30440.0,30439.0,0.99021688]
[1688196506071,0.3093,30440.0,30439.0,1.1546404]
[1688196511075,0.3093,30440.0,30439.0,0.7938404]
[1688196511276,0.3093,30440.0,30439.0,1.1546404]
[1688196511477,0.3093,30440.0,30439.0,0.7938404]
[1688196511777,0.3093,30440.0,30439.0,1.1546404]
[1688196512892,0.3093,30440.0,30439.0,0.99021688]
[1688196515171,0.3093,30440.0,30439.0,0.62941688]
[1688196515371,0.3093,30440.0,30439.0,0.99021688]
[1688196520072,0.3093,30440.0,30439.0,1.1546404]
[1688196521283,0.3093,30440.0,30439.0,0.7938404]
[1688196521484,0.3093,30440.0,30439.0,1.1546404]
[1688196523080,0.3093,30440.0,30439.0,0.7938404]
[1688196523282,0.3093,30440.0,30439.0,1.1546404]
[1688196528295,0.3093,30440.0,30439.0,1.13579095]
[1688196529088,0.3093,30440.0,30439.0,1.1546404]
[1688196531594,0.3093,30440.0,30439.0,0.7938404]
[1688196531797,0.3093,30440.0,30439.0,1.1546404]
[1688196534795,0.6645,30440.0,30439.0,0.7995404]
[1688196540606,0.66337151,30440.0,30439.0,0.7995404]
[1688196541921,0.00049281,30441.0,30440.0,0.3612]
[1688196542205,0.53002336,30456.0,30451.0,0.019709]
[1688196542406,0.53002336,30456.0,30455.0,0.11822825]
[1688196542596,0.53002336,30456.0,30455.0,0.09852225]
[1688196542597,0.019706,30456.0,30455.0,0.09852225]
[1688196542803,0.374906,30456.0,30455.0,0.16419745]
[1688196543006,0.374906,30456.0,30454.0,0.0853822]
[1688196543211,0.019706,30456.0,30454.0,0.0853822]
[1688196543613,0.019706,30456.0,30455.0,0.0656752]
[1688196543818,0.019706,30456.0,30455.0,0.019707]
[1688196544523,0.338106,30456.0,30455.0,0.019707]
[1688196550817,0.3184,30456.0,30455.0,0.019707]
[1688196551213,0.3394663,30456.0,30455.0,0.019707]
[1688196553719,0.7002663,30456.0,30455.0,0.019707]
[1688196554816,1.0535663,30456.0,30455.0,0.019707]
[1688196555318,0.6927663,30456.0,30455.0,0.019707]
[1688196555519,1.0535663,30456.0,30455.0,0.019707]
[1688196556527,1.0535663,30456.0,30446.0,0.02612425]
[1688196556528,1.4087663,30456.0,30446.0,0.02612425]
[1688196556828,0.3552,30447.0,30446.0,0.065709]
[1688196557016,0.30588698,30447.0,30446.0,0.10278814]
[1688196557211,0.32694735,30447.0,30446.0,0.08393869]
[1688196557525,0.32694735,30447.0,30446.0,0.065709]
[1688196558025,0.02105961,30447.0,30446.0,0.54097971]
[1688196558230,0.3533,30448.0,30446.0,0.54097971]
[1688196558423,0.3533,30448.0,30447.0,0.7159]
[1688196558424,0.02486056,30448.0,30447.0,0.7159]
[1688196558618,0.02486056,30448.0,30447.0,0.77269114]
[1688196558812,0.04927,30454.0,30447.0,0.735612]
[1688196559017,0.04927,30454.0,30451.0,0.3608]
[1688196559327,0.04927,30454.0,30452.0,0.05678814]
[1688196559627,0.023321,30453.0,30452.0,0.019709]
[1688196559826,0.355529,30453.0,30452.0,0.019709]
[1688196560724,0.02715413,30453.0,30452.0,0.03793869]
[1688196560924,0.38235413,30453.0,30452.0,0.03793869]
[1688196564832,0.38235413,30453.0,30452.0,0.39313869]
[1688196565131,0.38235413,30453.0,30452.0,0.77278814]
[1688196565430,0.39814091,30453.0,30452.0,0.77278814]
[1688196569132,0.39814091,30453.0,30452.0,0.41198814]
[1688196569435,0.39814091,30453.0,30452.0,0.77278814]
[1688196570630,0.39814091,30453.0,30452.0,0.41198814]
[1688196570828,0.39814091,30453.0,30452.0,0.77278814]
[1688196572435,0.37843291,30453.0,30452.0,0.77278814]
[1688196575527,0.39814091,30453.0,30452.0,0.77278814]
[1688196575729,0.39814091,30453.0,30452.0,0.41198814]
[1688196576122,0.39814091,30453.0,30452.0,0.77278814]
[1688196577035,0.39814091,30453.0,30452.0,0.41198814]
[1688196577227,0.39814091,30453.0,30452.0,0.77278814]
[1688196578029,0.39814091,30453.0,30452.0,0.75455845]
[1688196578837,0.39814091,30453.0,30452.0,0.77278814]
[1688196579142,0.37843291,30453.0,30452.0,0.77278814]
[1688196579536,0.39814091,30453.0,30452.0,0.77278814]
[1688196581441,0.39814091,30453.0,30452.0,1.09968814]
[1688196582141,0.46355823,30453.0,30452.0,1.09968814]
[1688196584031,0.4561121,30453.0,30452.0,1.09968814]
[1688196584342,0.4561121,30453.0,30452.0,1.19821039]
[1688196584343,0.39069478,30453.0,30452.0,1.19821039]
[1688196584727,0.39069478,30453.0,30452.0,0.84301039]
[1688196594842,0.39069478,30453.0,30452.0,1.19791039]
[1688196594843,0.38749478,30453.0,30452.0,1.19791039]
[1688196599348,0.36778678,30453.0,30452.0,1.19791039]
[1688196600748,0.38749478,30453.0,30452.0,1.19791039]
[1688196601138,0.36778678,30453.0,30452.0,1.19791039]
[1688196602041,0.46634616,30453.0,30452.0,1.19791039]
[1688196602447,0.36778678,30453.0,30452.0,1.19791039]
[1688196603041,0.46634634,30453.0,30452.0,1.09938814]
[1688196604349,0.48605434,30453.0,30452.0,1.08053869]
[1688196604747,0.48925434,30453.0,30452.0,1.07833869]
[1688196605951,0.47346756,30453.0,30452.0,1.18889176]
[1688196608254,0.47346756,30453.0,30452.0,1.20774121]
[1688196609257,0.374908,30453.0,30452.0,1.20774121]
[1688196610956,0.3910411,30453.0,30452.0,1.09718814]
[1688196612153,0.48962366,30453.0,30452.0,1.09718814]
[1688196612352,0.3910411,30453.0,30452.0,1.09718814]
[1688196612752,0.46991565,30453.0,30452.0,1.09718814]
[1688196613256,0.3713331,30453.0,30452.0,1.09718814]
[1688196613844,0.4699186,30453.0,30452.0,1.09718814]
[1688196614555,0.3713331,30453.0,30452.0,1.09718814]
[1688196614950,0.3713331,30453.0,30452.0,1.22853855]
[1688196615564,0.46992301,30453.0,30452.0,1.22853855]
[1688196615758,0.3910411,30453.0,30452.0,1.22853855]
[1688196616152,0.3713331,30453.0,30452.0,1.22853855]
[1688196616953,0.3713331,30453.0,30452.0,1.44598927]
[1688196617846,0.3910411,30453.0,30452.0,1.44598927]
[1688196618053,0.88271987,30453.0,30452.0,0.09853217]
[1688196618363,0.91536598,30453.0,30450.0,0.06615442]
[1688196618558,0.48667486,30451.0,30450.0,0.01971]
[1688196618760,0.52461455,30451.0,30450.0,0.01971]
[1688196618964,0.53762605,30451.0,30450.0,0.01971]
[1688196619156,0.51939636,30451.0,30450.0,0.01971]
[1688196619351,0.82459636,30451.0,30450.0,0.01971]
[1688196619659,0.6931215,30451.0,30450.0,0.01971]
[1688196620253,0.6931215,30451.0,30450.0,0.03793969]
[1688196620663,0.71135119,30451.0,30450.0,0.01971]